[Event "AUT Bundesliga 2022-23"]
[Site "Jenbach"]
[Date "2022.11.04"]
[Round "2.7"]
[White "Markus, Robert"]
[Black "Saric, Ivan"]
[Result "1/2-1/2"]
[ECO "E06"]
[WhiteElo "2615"]
[BlackElo "2668"]
[Annotator "ChessBase"]
[PlyCount "61"]
[EventDate "2022.11.03"]
[EventType "team-tourn"]
[EventCountry "AUT"]
[SourceTitle "playchess.com"]
[Source "ChessBase"]
[SourceQuality "1"]
[TimeControl "40/5400+30:1800+30"]

1. d4 {[%emt 0:00:04]} Nf6 {[%emt 0:00:05]} 2. c4 {[%emt 0:00:07]} e6 {[%emt 0:00:07]} 3. Nf3 {[%emt 0:00:07]} d5 {[%emt 0:00:08]} 4. g3 {[%emt 0:00:11]} Be7 {[%emt 0:00:11]} 5. Bg2 {[%emt 0:00:12]} O-O {[%emt 0:00:33]} 6. Nc3 {[%emt 0:00:24]} dxc4 {[%emt 0:00:49]} 7. Ne5 {[%emt 0:00:36]} c5 {[%emt 0:00:59]} 8. dxc5 {[%emt 0:00:35]} Qxd1+ {[%emt 0:00:07]} 9. Nxd1 {[%emt 0:00:08]} Bxc5 {[%emt 0:00:08]} 10. Nxc4 {[%emt 0:00:29]} Nc6 {[%emt 0:00:20]} 11. Be3 {[%emt 0:00:44]} Bb4+ {[%emt 0:00:38]} 12. Bd2 {[%emt 0:01:02]} Bxd2+ {[%emt 0:00:17]} 13. Nxd2 {[%emt 0:00:09]} Bd7 {[%emt 0:01:04]} 14. Nc3 {[%emt 0:01:40]} Nd4 {[%emt 0:03:43]} 15. Rc1 {[%emt 0:02:09]} Bc6 {[%emt 0:00:37]} 16. O-O {[%emt 0:00:43]} Rfd8 {[%emt 0:01:15]} 17. Rfd1 {[%emt 0:01:18]} Bxg2 {[%emt 0:01:07]} 18. Kxg2 {[%emt 0:00:11]} Kf8 {[%emt 0:00:54]} 19. Nf3 {[%emt 0:01:28]} Nxf3 {[%emt 0:00:10]} 20. Kxf3 {[%emt 0:00:06]} Ke7 {[%emt 0:00:42]} 21. Ne4 {[%emt 0:01:53]} Rxd1 {[%emt 0:00:31]} 22. Rxd1 {[%emt 0:00:06]} Nxe4 {[%emt 0:00:15]} 23. Kxe4 {[%emt 0:00:07]} Rc8 {[%emt 0:00:07]} 24. Rd3 {[%emt 0:02:31]} Rc2 {[%emt 0:03:24]} 25. Rb3 {[%emt 0:00:18]} b6 {[%emt 0:01:53]} 26. Kd3 {[%emt 0:01:05]} Rc5 {[%emt 0:00:05]} 27. Rc3 {[%emt 0:01:40]} Rd5+ {[%emt 0:03:27]} 28. Ke3 {[%emt 0:00:32]} Re5+ {[%emt 0:00:17]} 29. Kd3 {[%emt 0:00:07]} Rd5+ {[%emt 0:00:03]} 30. Ke3 {[%emt 0:00:08]} Re5+ {[%emt 0:00:03]} 31. Kd3 {[%emt 0:00:04]} 1/2-1/2

[Event "AUT Bundesliga 2022-23"]
[Site "Jenbach"]
[Date "2022.11.04"]
[Round "2.8"]
[White "Brkic, Ante"]
[Black "Horvath, Dominik"]
[Result "1/2-1/2"]
[ECO "C77"]
[WhiteElo "2602"]
[BlackElo "2505"]
[Annotator "ChessBase"]
[PlyCount "102"]
[EventDate "2022.11.03"]
[EventType "team-tourn"]
[EventCountry "AUT"]
[SourceTitle "playchess.com"]
[Source "ChessBase"]
[SourceQuality "1"]
[TimeControl "40/5400+30:1800+30"]

1. e4 {[%emt 0:00:04]} e5 {[%emt 0:00:07]} 2. Nf3 {[%emt 0:00:04]} Nc6 {[%emt 0:00:04]} 3. Bb5 {[%emt 0:00:05]} a6 {[%emt 0:00:04]} 4. Ba4 {[%emt 0:00:04]} Nf6 {[%emt 0:00:03]} 5. d3 {[%emt 0:00:08]} b5 {[%emt 0:01:36]} 6. Bb3 {[%emt 0:00:05]} Bc5 {[%emt 0:00:03]} 7. Nc3 {[%emt 0:02:15]} d6 {[%emt 0:03:12]} 8. Nd5 {[%emt 0:00:19]} h6 {[%emt 0:01:25]} 9. c3 {[%emt 0:00:16]} Rb8 {[%emt 0:08:04]} 10. O-O {[%emt 0:02:12]} O-O {[%emt 0:01:01]} 11. d4 {[%emt 0:00:42]} Ba7 {[%emt 0:00:26]} 12. Be3 {[%emt 0:00:16]} Ng4 {[%emt 0:02:28]} 13. dxe5 {[%emt 0:04:53]} Bxe3 {[%emt 0:15:29]} 14. Nxe3 {[%emt 0:06:45]} Ncxe5 {[%emt 0:00:50]} 15. Nxe5 {[%emt 0:02:02]} Nxe5 {[%emt 0:00:07]} 16. f4 {[%emt 0:15:03]} Nd7 {[%emt 0:00:16]} 17. Qd4 {[%emt 0:01:13]} Nc5 {[%emt 0:08:24]} 18. Bc2 {[%emt 0:00:52]} Re8 {[%emt 0:12:33]} 19. Rad1 {[%emt 0:17:27]} Ne6 {[%emt 0:04:56]} 20. Qd2 {[%emt 0:02:59]} Bb7 {[%emt 0:00:13]} 21. Qf2 {[%emt 0:15:26]} Qe7 {[%emt 0:02:35]} 22. Nf5 {[%emt 0:04:55]} Qf8 {[%emt 0:00:07]} 23. Qg3 {[%emt 0:00:24]} Kh8 {[%emt 0:00:17]} 24. b4 {[%emt 0:03:02]} a5 {[%emt 0:06:59]} 25. a3 {[%emt 0:00:25]} Ra8 {[%emt 0:00:17]} 26. Rde1 {[%emt 0:02:21]} axb4 {[%emt 0:05:19]} 27. cxb4 {[%emt 0:00:18]} Ra6 {[%emt 0:02:05]} 28. Re3 {[%emt 0:04:54]} Rea8 {[%emt 0:04:12]} 29. Qh3 {[%emt 0:01:56]} Bc8 {[%emt 0:01:27]} 30. Qg3 {[%emt 0:02:59]} Bb7 {[%emt 0:02:40]} 31. Bb1 {[%emt 0:03:40]} d5 {[%emt 0:04:40]} 32. exd5 {[%emt 0:01:02]} Bxd5 {[%emt 0:00:04]} 33. Qh3 {[%emt 0:01:04]} Bc4 {[%emt 0:05:20]} 34. Rfe1 {[%emt 0:05:12]} Nxf4 {[%emt 0:00:17]} 35. Qg3 {[%emt 0:00:01]} Ne6 {[%emt 0:01:25]} 36. h4 {[%emt 0:00:43]} c5 {[%emt 0:00:27]} 37. Qe5 {[%emt 0:01:25]} Rxa3 {[%emt 0:02:23]} 38. Nxh6 {[%emt 0:00:58]} Rxe3 {[%emt 0:01:24]} 39. Rxe3 {[%emt 0:00:03]} Rd8 {[%emt 0:01:30]} 40. Be4 {[%emt 0:00:00]} Rd1+ {[%emt 0:00:00]} 41. Kh2 {[%emt 0:01:24]} f5 {[%emt 0:26:10]} 42. Bxf5 {[%emt 0:11:44]} Rd5 {[%emt 0:04:33]} 43. Qxe6 {[%emt 0:01:08]} gxh6 {[%emt 0:00:04]} 44. Qg6 {[%emt 0:07:43]} Qd6+ {[%emt 0:00:08]} 45. Qxd6 {[%emt 0:00:07]} Rxd6 {[%emt 0:00:02]} 46. bxc5 {[%emt 0:00:12]} Rd5 {[%emt 0:00:36]} 47. c6 {[%emt 0:10:33]} Rxf5 {[%emt 0:00:01]} 48. Re8+ {[%emt 0:00:06]} Kg7 {[%emt 0:00:03]} 49. c7 {[%emt 0:00:06]} Be6 {[%emt 0:00:01]} 50. Rxe6 {[%emt 0:00:38]} Rc5 {[%emt 0:00:03]} 51. Rb6 {[%emt 0:01:47]} Rxc7 {[%emt 0:00:04]} 1/2-1/2

[Event "AUT Bundesliga 2022-23"]
[Site "Jenbach"]
[Date "2022.11.04"]
[Round "2.9"]
[White "Korpa, Bence"]
[Black "Livaic, Leon"]
[Result "1-0"]
[ECO "A45"]
[WhiteElo "2496"]
[BlackElo "2574"]
[Annotator "ChessBase"]
[PlyCount "113"]
[EventDate "2022.11.03"]
[EventType "team-tourn"]
[EventCountry "AUT"]
[SourceTitle "playchess.com"]
[Source "ChessBase"]
[SourceQuality "1"]
[TimeControl "40/5400+30:1800+30"]

1. d4 {[%emt 0:00:05]} Nf6 {[%emt 0:00:05]} 2. Bf4 {[%emt 0:01:08]} c5 {[%emt 0:01:51]} 3. e3 {[%emt 0:00:23]} Nd5 {[%emt 0:01:38]} 4. Bg3 {[%emt 0:00:38]} Qb6 {[%emt 0:00:24]} 5. c4 {[%emt 0:00:57]} Nf6 {[%emt 0:00:09]} 6. Nc3 {[%emt 0:00:42]} Qxb2 {[%emt 0:01:22]} 7. Nge2 {[%emt 0:00:25]} Qa3 {[%emt 0:10:51]} 8. Rb1 {[%emt 0:00:32]} cxd4 {[%emt 0:01:03]} 9. exd4 {[%emt 0:00:08]} Qa5 {[%emt 0:12:21]} 10. Rb5 {[%emt 0:27:03]} Qd8 {[%emt 0:00:11]} 11. Nf4 {[%emt 0:09:04]} d6 {[%emt 0:04:10]} 12. Be2 {[%emt 0:10:39]} g6 {[%emt 0:04:02]} 13. h4 {[%emt 0:00:44]} a6 {[%emt 0:13:54]} 14. Rb3 {[%emt 0:00:32]} Qa5 {[%emt 0:03:52]} 15. O-O {[%emt 0:03:04]} Bg7 {[%emt 0:05:29]} 16. Ncd5 {[%emt 0:07:27]} Nbd7 {[%emt 0:00:21]} 17. Re3 {[%emt 0:09:53]} O-O {[%emt 0:06:15]} 18. Nxe7+ {[%emt 0:01:08]} Kh8 {[%emt 0:00:03]} 19. h5 {[%emt 0:01:31]} gxh5 {[%emt 0:02:40]} 20. Nfd5 {[%emt 0:01:50]} Nxd5 {[%emt 0:00:19]} 21. Nxd5 {[%emt 0:00:17]} Nf6 {[%emt 0:02:56]} 22. Nxf6 {[%emt 0:05:47]} Bxf6 {[%emt 0:00:04]} 23. Bxd6 {[%emt 0:00:13]} Rg8 {[%emt 0:00:29]} 24. Be5 {[%emt 0:03:49]} Bxe5 {[%emt 0:00:32]} 25. Rxe5 {[%emt 0:00:06]} Qxa2 {[%emt 0:01:03]} 26. Rxh5 {[%emt 0:00:23]} Bd7 {[%emt 0:01:55]} 27. Qb1 {[%emt 0:06:22]} Qxb1 {[%emt 0:00:21]} 28. Rxb1 {[%emt 0:00:06]} a5 {[%emt 0:10:18]} 29. Bd3 {[%emt 0:02:53]} Rg7 {[%emt 0:00:06]} 30. Be4 {[%emt 0:00:17]} f5 {[%emt 0:06:02]} 31. Bxb7 {[%emt 0:02:07]} Rb8 {[%emt 0:00:08]} 32. Be4 {[%emt 0:00:17]} Rxb1+ {[%emt 0:00:41]} 33. Bxb1 {[%emt 0:00:06]} Rg4 {[%emt 0:00:21]} 34. Bxf5 {[%emt 0:00:47]} Bxf5 {[%emt 0:00:05]} 35. Rxf5 {[%emt 0:00:06]} Rxd4 {[%emt 0:00:01]} 36. Rxa5 {[%emt 0:00:12]} Rxc4 {[%emt 0:00:04]} 37. Ra7 {[%emt 0:00:05]} Kg8 {[%emt 0:02:18]} 38. Kh2 {[%emt 0:03:41]} h6 {[%emt 0:02:18]} 39. Kg3 {[%emt 0:00:47]} Rc2 {[%emt 0:00:29]} 40. f4 {[%emt 0:00:00]} Rb2 {[%emt 0:00:00]} 41. Kf3 {[%emt 0:08:46]} Rc2 {[%emt 0:10:36]} 42. Re7 {[%emt 0:08:02]} Ra2 {[%emt 0:00:32]} 43. Rd7 {[%emt 0:05:18]} Rb2 {[%emt 0:00:09]} 44. g3 {[%emt 0:00:54]} Rb1 {[%emt 0:15:36]} 45. Kg4 {[%emt 0:03:18]} Rb3 {[%emt 0:03:04]} 46. Re7 {[%emt 0:01:49]} Ra3 {[%emt 0:00:12]} 47. Kh4 {[%emt 0:00:44]} Rf3 {[%emt 0:00:13]} 48. Kg4 {[%emt 0:00:53]} Ra3 {[%emt 0:00:04]} 49. f5 {[%emt 0:00:53]} Rb3 {[%emt 0:03:16]} 50. Kh4 {[%emt 0:05:39]} Rb1 {[%emt 0:04:05]} 51. Kh5 {[%emt 0:00:28]} Kf8 {[%emt 0:02:00]} 52. Rh7 {[%emt 0:01:15]} Rh1+ {[%emt 0:02:04]} 53. Kg6 {[%emt 0:00:07]} Rg1 {[%emt 0:00:02]} 54. Rh8+ {[%emt 0:00:07]} Ke7 {[%emt 0:00:04]} 55. f6+ {[%emt 0:00:04]} Kd7 {[%emt 0:00:02]} 56. f7 {[%emt 0:00:15]} Rxg3+ {[%emt 0:00:04]} 57. Kh7 {[%emt 0:00:05]} 1-0

[Event "AUT Bundesliga 2022-23"]
[Site "Jenbach"]
[Date "2022.11.04"]
[Round "2.10"]
[White "Kuljasevic, Davorin"]
[Black "Nagy, Gabor"]
[Result "1/2-1/2"]
[ECO "D30"]
[WhiteElo "2560"]
[BlackElo "2488"]
[Annotator "ChessBase"]
[PlyCount "91"]
[EventDate "2022.11.03"]
[EventType "team-tourn"]
[EventCountry "AUT"]
[SourceTitle "playchess.com"]
[Source "ChessBase"]
[SourceQuality "1"]
[TimeControl "40/5400+30:1800+30"]

1. d4 {[%emt 0:00:04]} d5 {[%emt 0:00:20]} 2. c4 {[%emt 0:00:13]} e6 {[%emt 0:00:08]} 3. Nf3 {[%emt 0:00:21]} a6 {[%emt 0:01:17]} 4. Bg5 {[%emt 0:01:10]} Be7 {[%emt 0:03:20]} 5. Bxe7 {[%emt 0:00:11]} Qxe7 {[%emt 0:00:13]} 6. Nbd2 {[%emt 0:00:48]} Nf6 {[%emt 0:00:43]} 7. g3 {[%emt 0:00:55]} dxc4 {[%emt 0:00:35]} 8. Nxc4 {[%emt 0:02:53]} Nc6 {[%emt 0:00:38]} 9. Rc1 {[%emt 0:09:22]} b5 {[%emt 0:00:51]} 10. Nce5 {[%emt 0:11:17]} Nxe5 {[%emt 0:00:31]} 11. dxe5 {[%emt 0:07:32]} Nd5 {[%emt 0:09:28]} 12. Bg2 {[%emt 0:11:45]} Bb7 {[%emt 0:03:41]} 13. O-O {[%emt 0:02:15]} Nb6 {[%emt 0:12:41]} 14. b3 {[%emt 0:14:07]} Rc8 {[%emt 0:03:48]} 15. Qc2 {[%emt 0:09:36]} c5 {[%emt 0:01:10]} 16. Rfd1 {[%emt 0:01:31]} c4 {[%emt 0:01:56]} 17. Qd2 {[%emt 0:01:58]} O-O {[%emt 0:03:16]} 18. Qa5 {[%emt 0:02:46]} Nd7 {[%emt 0:08:01]} 19. bxc4 {[%emt 0:03:55]} bxc4 {[%emt 0:04:14]} 20. Rd4 {[%emt 0:05:01]} c3 {[%emt 0:06:51]} 21. Rxc3 {[%emt 0:01:13]} Rxc3 {[%emt 0:00:30]} 22. Qxc3 {[%emt 0:00:02]} Rc8 {[%emt 0:05:08]} 23. Qb2 {[%emt 0:02:42]} Bxf3 {[%emt 0:00:39]} 24. exf3 {[%emt 0:00:29]} Nxe5 {[%emt 0:00:33]} 25. f4 {[%emt 0:01:08]} Ng4 {[%emt 0:04:37]} 26. Bf3 {[%emt 0:03:08]} h5 {[%emt 0:00:37]} 27. h3 {[%emt 0:00:15]} Nf6 {[%emt 0:00:45]} 28. Qb7 {[%emt 0:00:29]} Rc1+ {[%emt 0:04:58]} 29. Kg2 {[%emt 0:00:03]} Qc5 {[%emt 0:00:16]} 30. Qb8+ {[%emt 0:03:28]} Kh7 {[%emt 0:00:19]} 31. Qe5 {[%emt 0:00:12]} Qb6 {[%emt 0:02:22]} 32. Rd1 {[%emt 0:04:30]} Rc5 {[%emt 0:02:10]} 33. Qd4 {[%emt 0:00:18]} Qa5 {[%emt 0:00:37]} 34. Rd2 {[%emt 0:00:50]} e5 {[%emt 0:01:32]} 35. fxe5 {[%emt 0:00:27]} Rxe5 {[%emt 0:00:07]} 36. Re2 {[%emt 0:00:47]} Rxe2 {[%emt 0:01:46]} 37. Bxe2 {[%emt 0:00:15]} Qxa2 {[%emt 0:00:32]} 38. Bd3+ {[%emt 0:00:25]} Kh8 {[%emt 0:00:10]} 39. Bc4 {[%emt 0:00:36]} Qa5 {[%emt 0:01:30]} 40. Bxf7 {[%emt 0:00:00]} Qc7 {[%emt 0:00:00]} 41. Bg6 {[%emt 0:03:44]} a5 {[%emt 0:01:59]} 42. Kg1 {[%emt 0:06:51]} Qc1+ {[%emt 0:01:32]} 43. Kh2 {[%emt 0:00:36]} Qc7 {[%emt 0:00:17]} 44. Kg1 {[%emt 0:01:22]} Qc1+ {[%emt 0:00:14]} 45. Kg2 {[%emt 0:02:18]} Qc6+ {[%emt 0:00:46]} 46. Kg1 {[%emt 0:04:37]} 1/2-1/2

[Event "AUT Bundesliga 2022-23"]
[Site "Jenbach"]
[Date "2022.11.04"]
[Round "2.11"]
[White "Mesaros, Florian"]
[Black "Bosiocic, Marin"]
[Result "0-1"]
[ECO "E51"]
[WhiteElo "2404"]
[BlackElo "2548"]
[Annotator "ChessBase"]
[PlyCount "106"]
[EventDate "2022.11.03"]
[EventType "team-tourn"]
[EventCountry "AUT"]
[SourceTitle "playchess.com"]
[Source "ChessBase"]
[SourceQuality "1"]
[TimeControl "40/5400+30:1800+30"]

1. d4 {[%emt 0:00:06]} Nf6 {[%emt 0:00:09]} 2. c4 {[%emt 0:00:04]} e6 {[%emt 0:00:07]} 3. Nc3 {[%emt 0:00:09]} Bb4 {[%emt 0:00:08]} 4. e3 {[%emt 0:00:06]} O-O {[%emt 0:00:07]} 5. Nf3 {[%emt 0:00:17]} d5 {[%emt 0:00:07]} 6. Bd2 {[%emt 0:00:23]} Re8 {[%emt 0:00:07]} 7. Rc1 {[%emt 0:01:18]} Bf8 {[%emt 0:01:34]} 8. Bd3 {[%emt 0:03:54]} b6 {[%emt 0:02:51]} 9. cxd5 {[%emt 0:02:15]} exd5 {[%emt 0:00:13]} 10. Ne5 {[%emt 0:02:31]} Ba6 {[%emt 0:00:56]} 11. Bxa6 {[%emt 0:01:43]} Nxa6 {[%emt 0:00:10]} 12. O-O {[%emt 0:02:11]} c5 {[%emt 0:02:13]} 13. Be1 {[%emt 0:05:08]} Nc7 {[%emt 0:05:11]} 14. f4 {[%emt 0:05:23]} Ne4 {[%emt 0:01:48]} 15. Qh5 {[%emt 0:05:26]} g6 {[%emt 0:02:21]} 16. Qh3 {[%emt 0:02:16]} f6 {[%emt 0:05:53]} 17. Bh4 {[%emt 0:13:05]} Nxc3 {[%emt 0:10:37]} 18. Rxc3 {[%emt 0:09:24]} Nb5 {[%emt 0:10:24]} 19. Rb3 {[%emt 0:08:13]} Nd6 {[%emt 0:02:46]} 20. dxc5 {[%emt 0:05:35]} bxc5 {[%emt 0:00:40]} 21. Nd7 {[%emt 0:01:19]} Bg7 {[%emt 0:09:21]} 22. Rd1 {[%emt 0:03:08]} c4 {[%emt 0:04:03]} 23. Ra3 {[%emt 0:02:02]} Qe7 {[%emt 0:06:55]} 24. Rxd5 {[%emt 0:02:47]} Ne4 {[%emt 0:05:33]} 25. Raa5 {[%emt 0:11:20]} c3 {[%emt 0:04:37]} 26. bxc3 {[%emt 0:01:38]} Nxc3 {[%emt 0:00:41]} 27. Rdc5 {[%emt 0:06:56]} Ne4 {[%emt 0:08:07]} 28. Rc1 {[%emt 0:01:21]} Qd6 {[%emt 0:01:21]} 29. Be1 {[%emt 0:02:58]} Qd3 {[%emt 0:04:56]} 30. Nc5 {[%emt 0:01:31]} Nxc5 {[%emt 0:00:30]} 31. Raxc5 {[%emt 0:00:11]} Rxe3 {[%emt 0:00:13]} 32. Rc8+ {[%emt 0:01:10]} Bf8 {[%emt 0:01:53]} 33. g3 {[%emt 0:00:31]} Rxc8 {[%emt 0:08:20]} 34. Qxc8 {[%emt 0:00:04]} Re2 {[%emt 0:01:13]} 35. Qc3 {[%emt 0:01:02]} Qxc3 {[%emt 0:00:47]} 36. Bxc3 {[%emt 0:00:08]} Bc5+ {[%emt 0:00:48]} 37. Kh1 {[%emt 0:00:10]} f5 {[%emt 0:00:14]} 38. Be5 {[%emt 0:00:43]} Bb6 {[%emt 0:00:12]} 39. a4 {[%emt 0:00:53]} Ra2 {[%emt 0:00:04]} 40. Rc8+ {[%emt 0:00:00]} Kf7 {[%emt 0:00:00]} 41. Rh8 {[%emt 0:14:45]} h5 {[%emt 0:00:16]} 42. Rh7+ {[%emt 0:05:19]} Ke6 {[%emt 0:00:07]} 43. Rg7 {[%emt 0:01:24]} Kd5 {[%emt 0:00:45]} 44. a5 {[%emt 0:01:05]} Be3 {[%emt 0:01:16]} 45. Bb8 {[%emt 0:03:20]} Ke4 {[%emt 0:01:40]} 46. Rxg6 {[%emt 0:02:36]} Kf3 {[%emt 0:00:28]} 47. h4 {[%emt 0:01:19]} Ra1+ {[%emt 0:00:54]} 48. Kh2 {[%emt 0:00:01]} Bg1+ {[%emt 0:00:19]} 49. Kh1 {[%emt 0:00:03]} Bf2+ {[%emt 0:00:10]} 50. Kh2 {[%emt 0:00:01]} Ra2 {[%emt 0:00:32]} 51. Kh1 {[%emt 0:01:20]} Rxa5 {[%emt 0:00:53]} 52. Rg7 {[%emt 0:01:46]} Ra1+ {[%emt 0:00:40]} 53. Kh2 {[%emt 0:00:02]} Bg1+ {[%emt 0:00:10]} 0-1

[Event "AUT Bundesliga 2022-23"]
[Site "Jenbach"]
[Date "2022.11.04"]
[Round "2.12"]
[White "Saric, Ante"]
[Black "Freitag, Manfred"]
[Result "1-0"]
[ECO "E97"]
[WhiteElo "2510"]
[BlackElo "2357"]
[Annotator "ChessBase"]
[PlyCount "83"]
[EventDate "2022.11.03"]
[EventType "team-tourn"]
[EventCountry "AUT"]
[SourceTitle "playchess.com"]
[Source "ChessBase"]
[SourceQuality "1"]
[TimeControl "40/5400+30:1800+30"]

1. Nf3 {[%emt 0:00:04]} Nf6 {[%emt 0:00:18]} 2. c4 {[%emt 0:00:07]} g6 {[%emt 0:01:41]} 3. Nc3 {[%emt 0:00:11]} Bg7 {[%emt 0:00:03]} 4. e4 {[%emt 0:00:06]} d6 {[%emt 0:00:43]} 5. d4 {[%emt 0:00:06]} O-O {[%emt 0:00:11]} 6. Be2 {[%emt 0:00:03]} e5 {[%emt 0:00:26]} 7. O-O {[%emt 0:00:16]} Nc6 {[%emt 0:00:38]} 8. dxe5 {[%emt 0:01:09]} dxe5 {[%emt 0:00:30]} 9. Bg5 {[%emt 0:00:07]} Nd4 {[%emt 0:03:35]} 10. Nxd4 {[%emt 0:12:57]} exd4 {[%emt 0:00:55]} 11. Nd5 {[%emt 0:00:06]} c6 {[%emt 0:00:19]} 12. Nxf6+ {[%emt 0:00:27]} Bxf6 {[%emt 0:00:09]} 13. Bxf6 {[%emt 0:01:05]} Qxf6 {[%emt 0:00:02]} 14. Bd3 {[%emt 0:00:40]} Qf4 {[%emt 0:07:19]} 15. c5 {[%emt 0:10:48]} Be6 {[%emt 0:12:38]} 16. Qc1 {[%emt 0:07:31]} Qxc1 {[%emt 0:03:53]} 17. Rfxc1 {[%emt 0:00:05]} f5 {[%emt 0:00:31]} 18. exf5 {[%emt 0:12:09]} Bxf5 {[%emt 0:00:22]} 19. Rd1 {[%emt 0:00:26]} Rfd8 {[%emt 0:07:00]} 20. Rac1 {[%emt 0:11:00]} Bxd3 {[%emt 0:08:31]} 21. Rxd3 {[%emt 0:00:11]} Rd5 {[%emt 0:00:03]} 22. Kf1 {[%emt 0:08:01]} Kf7 {[%emt 0:04:34]} 23. Rf3+ {[%emt 0:01:46]} Ke6 {[%emt 0:07:46]} 24. Ke2 {[%emt 0:10:37]} Rf5 {[%emt 0:00:53]} 25. Rxf5 {[%emt 0:00:44]} gxf5 {[%emt 0:00:01]} 26. Kd3 {[%emt 0:00:26]} Rg8 {[%emt 0:06:37]} 27. g3 {[%emt 0:07:34]} f4 {[%emt 0:00:29]} 28. Re1+ {[%emt 0:02:38]} Kd5 {[%emt 0:00:55]} 29. b4 {[%emt 0:00:11]} b6 {[%emt 0:26:50]} 30. gxf4 {[%emt 0:00:19]} bxc5 {[%emt 0:00:07]} 31. Re5+ {[%emt 0:00:05]} Kd6 {[%emt 0:00:09]} 32. bxc5+ {[%emt 0:00:10]} Kd7 {[%emt 0:00:04]} 33. Rg5 {[%emt 0:06:21]} Rf8 {[%emt 0:01:35]} 34. f5 {[%emt 0:00:23]} Ke7 {[%emt 0:00:38]} 35. Kxd4 {[%emt 0:02:22]} Rd8+ {[%emt 0:02:02]} 36. Ke4 {[%emt 0:02:39]} Kf6 {[%emt 0:01:35]} 37. Rh5 {[%emt 0:00:10]} Kg7 {[%emt 0:00:03]} 38. Ke5 {[%emt 0:03:01]} Rd2 {[%emt 0:00:14]} 39. f6+ {[%emt 0:01:12]} Kg6 {[%emt 0:00:26]} 40. Rh3 {[%emt 0:00:00]} Rxf2 {[%emt 0:00:00]} 41. Rg3+ {[%emt 0:00:58]} Kf7 {[%emt 0:06:07]} 42. Rg7+ {[%emt 0:00:06]} 1-0

[Event "AUT Bundesliga 2022-23"]
[Site "Jenbach"]
[Date "2022.11.04"]
[Round "2.13"]
[White "Bluebaum, Matthias"]
[Black "Ragger, Markus"]
[Result "1/2-1/2"]
[ECO "A45"]
[WhiteElo "2647"]
[BlackElo "2632"]
[Annotator "ChessBase"]
[PlyCount "69"]
[EventDate "2022.11.03"]
[EventType "team-tourn"]
[EventCountry "AUT"]
[SourceTitle "playchess.com"]
[Source "ChessBase"]
[SourceQuality "1"]
[TimeControl "40/5400+30:1800+30"]

1. d4 {[%emt 0:00:03]} Nf6 {[%emt 0:00:02]} 2. Bg5 {[%emt 0:00:18]} d5 {[%emt 0:01:12]} 3. e3 {[%emt 0:00:14]} c5 {[%emt 0:03:29]} 4. c3 {[%emt 0:01:26]} Qb6 {[%emt 0:09:52]} 5. Qc2 {[%emt 0:00:59]} cxd4 {[%emt 0:13:13]} 6. exd4 {[%emt 0:03:50]} Bg4 {[%emt 0:01:19]} 7. Bd3 {[%emt 0:20:45]} Bh5 {[%emt 0:05:33]} 8. Ne2 {[%emt 0:03:38]} Bg6 {[%emt 0:03:54]} 9. Nf4 {[%emt 0:03:43]} Bxd3 {[%emt 0:02:38]} 10. Nxd3 {[%emt 0:00:21]} Nbd7 {[%emt 0:06:17]} 11. O-O {[%emt 0:00:58]} e6 {[%emt 0:00:03]} 12. Nd2 {[%emt 0:05:09]} Bd6 {[%emt 0:01:00]} 13. Rae1 {[%emt 0:01:52]} Rc8 {[%emt 0:07:57]} 14. Qb1 {[%emt 0:07:15]} Qc7 {[%emt 0:04:32]} 15. f4 {[%emt 0:03:28]} h6 {[%emt 0:08:32]} 16. Bxf6 {[%emt 0:04:13]} Nxf6 {[%emt 0:00:05]} 17. Qd1 {[%emt 0:05:06]} O-O {[%emt 0:00:38]} 18. Qf3 {[%emt 0:04:30]} b5 {[%emt 0:02:36]} 19. Rc1 {[%emt 0:05:00]} b4 {[%emt 0:03:48]} 20. c4 {[%emt 0:02:48]} dxc4 {[%emt 0:00:50]} 21. Nxc4 {[%emt 0:00:01]} Qd7 {[%emt 0:03:36]} 22. Kh1 {[%emt 0:04:28]} Be7 {[%emt 0:08:25]} 23. Nce5 {[%emt 0:02:24]} Qd5 {[%emt 0:00:05]} 24. Nc6 {[%emt 0:02:52]} Bd6 {[%emt 0:00:01]} 25. Ndxb4 {[%emt 0:03:03]} Qxf3 {[%emt 0:00:05]} 26. gxf3 {[%emt 0:00:03]} Rc7 {[%emt 0:01:04]} 27. Nd3 {[%emt 0:01:39]} Nd5 {[%emt 0:01:41]} 28. b4 {[%emt 0:03:07]} a6 {[%emt 0:05:07]} 29. a4 {[%emt 0:01:10]} Rfc8 {[%emt 0:01:36]} 30. b5 {[%emt 0:00:35]} axb5 {[%emt 0:01:51]} 31. axb5 {[%emt 0:00:02]} Rb7 {[%emt 0:00:05]} 32. Rb1 {[%emt 0:00:57]} Nc3 {[%emt 0:00:23]} 33. Rbc1 {[%emt 0:00:03]} Nd5 {[%emt 0:00:03]} 34. Rb1 {[%emt 0:00:02]} Nc3 {[%emt 0:01:41]} 35. Rbc1 {[%emt 0:00:03]} 1/2-1/2

[Event "AUT Bundesliga 2022-23"]
[Site "Jenbach"]
[Date "2022.11.04"]
[Round "2.14"]
[White "Naumann, Alexander"]
[Black "Svane, Rasmus"]
[Result "1/2-1/2"]
[ECO "D37"]
[WhiteElo "2513"]
[BlackElo "2615"]
[Annotator "ChessBase"]
[PlyCount "45"]
[EventDate "2022.11.03"]
[EventType "team-tourn"]
[EventCountry "AUT"]
[SourceTitle "playchess.com"]
[Source "ChessBase"]
[SourceQuality "1"]
[TimeControl "40/5400+30:1800+30"]

1. d4 {[%emt 0:00:04]} Nf6 {[%emt 0:00:08]} 2. c4 {[%emt 0:00:10]} e6 {[%emt 0:00:08]} 3. Nf3 {[%emt 0:00:06]} d5 {[%emt 0:00:27]} 4. Nc3 {[%emt 0:00:32]} h6 {[%emt 0:03:36]} 5. g3 {[%emt 0:00:42]} Bd6 {[%emt 0:02:38]} 6. Bg2 {[%emt 0:00:51]} O-O {[%emt 0:00:12]} 7. O-O {[%emt 0:01:04]} Nc6 {[%emt 0:00:25]} 8. b3 {[%emt 0:02:23]} dxc4 {[%emt 0:04:22]} 9. bxc4 {[%emt 0:00:11]} e5 {[%emt 0:00:05]} 10. Rb1 {[%emt 0:01:23]} Re8 {[%emt 0:30:36]} 11. c5 {[%emt 0:12:24]} exd4 {[%emt 0:03:10]} 12. Nxd4 {[%emt 0:00:21]} Nxd4 {[%emt 0:00:54]} 13. cxd6 {[%emt 0:08:19]} Qxd6 {[%emt 0:02:13]} 14. Bf4 {[%emt 0:17:39]} Qd8 {[%emt 0:09:52]} 15. Bxc7 {[%emt 0:03:53]} Nxe2+ {[%emt 0:04:28]} 16. Qxe2 {[%emt 0:01:21]} Qxc7 {[%emt 0:00:06]} 17. Nd5 {[%emt 0:00:34]} Rxe2 {[%emt 0:02:19]} 18. Nxc7 {[%emt 0:00:08]} Rb8 {[%emt 0:00:03]} 19. Na6 {[%emt 0:00:50]} Ra8 {[%emt 0:00:03]} 20. Nc7 {[%emt 0:00:24]} Rb8 {[%emt 0:00:04]} 21. Na6 {[%emt 0:00:05]} Ra8 {[%emt 0:00:07]} 22. Nc7 {[%emt 0:00:07]} Rb8 {[%emt 0:00:03]} 23. Na6 {[%emt 0:00:09]} 1/2-1/2